[Event "Live Chess"]
[Site "Chess.com"]
[Date "2023.05.20"]
[Round "-"]
[White "LL220284LL"]
[Black "FlyingChessKestrel13"]
[Result "1-0"]
[WhiteElo "2388"]
[BlackElo "2098"]
[TimeControl "300"]
[EndTime "15:56:02 PDT"]
[Termination "LL220284LL won by resignation"]

1. Nf3 {[%clk 0:04:56.8]} 1... c6 {[%clk 0:04:56.7]} 2. c4 {[%clk 0:04:52.6]}
2... d5 {[%clk 0:04:55.9]} 3. e3 {[%clk 0:04:51.8]} 3... Nf6 {[%clk 0:04:54.5]}
4. Be2 {[%clk 0:04:49.8]} 4... a6 {[%clk 0:04:53.1]} 5. b3 {[%clk 0:04:48.4]}
5... e6 {[%clk 0:04:06.5]} 6. O-O {[%clk 0:03:41.8]} 6... Be7 {[%clk 0:04:02.2]}
7. Bb2 {[%clk 0:03:40.5]} 7... O-O {[%clk 0:03:58.5]} 8. d4 {[%clk 0:03:39.6]}
8... Ne4 {[%clk 0:03:51.6]} 9. Nbd2 {[%clk 0:03:37.6]} 9... f5 {[%clk
0:03:50.4]} 10. Ne5 {[%clk 0:03:35.6]} 10... Bf6 {[%clk 0:03:48.6]} 11. f3
{[%clk 0:03:33.9]} 11... Nxd2 {[%clk 0:03:45.9]} 12. Qxd2 {[%clk 0:03:33.8]}
12... Bxe5 {[%clk 0:03:45.2]} 13. dxe5 {[%clk 0:03:32.9]} 13... b5 {[%clk
0:03:42.9]} 14. cxb5 {[%clk 0:03:30]} 14... axb5 {[%clk 0:03:42.1]} 15. a4
{[%clk 0:03:24.6]} 15... bxa4 {[%clk 0:03:40.4]} 16. bxa4 {[%clk 0:03:24.5]}
16... Bd7 {[%clk 0:03:38.2]} 17. Ba3 {[%clk 0:03:23.4]} 17... Rf7 {[%clk
0:03:36.7]} 18. Bd6 {[%clk 0:03:19.7]} 18... c5 {[%clk 0:03:33.9]} 19. Bxc5
{[%clk 0:03:14.2]} 19... Rxa4 {[%clk 0:03:31.6]} 20. Rab1 {[%clk 0:03:08.3]}
20... Nc6 {[%clk 0:03:27.9]} 21. Bb5 {[%clk 0:03:03.7]} 21... Ra8 {[%clk
0:03:24.3]} 22. Bd6 {[%clk 0:03:00.6]} 22... Be8 {[%clk 0:03:19.8]} 23. Rfc1
{[%clk 0:02:58.4]} 23... Na5 {[%clk 0:03:16]} 24. Bd3 {[%clk 0:02:44.9]} 24...
Rc8 {[%clk 0:03:10.3]} 25. Rxc8 {[%clk 0:02:42.4]} 25... Qxc8 {[%clk 0:03:09]}
26. Qxa5 {[%clk 0:02:42]} 1-0

[Event "Live Chess"]
[Site "Chess.com"]
[Date "2023.05.20"]
[Round "-"]
[White "f4nomore"]
[Black "LutherSullivan"]
[Result "0-1"]
[WhiteElo "1425"]
[BlackElo "2052"]
[TimeControl "300"]
[EndTime "15:56:04 PDT"]
[Termination "LutherSullivan won by resignation"]

1. d4 {[%clk 0:04:57.4]} 1... Nf6 {[%clk 0:04:58.7]} 2. Bg5 {[%clk 0:04:53.9]}
2... Ne4 {[%clk 0:04:55.2]} 3. Bh4 {[%clk 0:04:52.5]} 3... c5 {[%clk 0:04:53.2]}
4. f3 {[%clk 0:04:42.5]} 4... g5 {[%clk 0:04:48.4]} 5. fxe4 {[%clk 0:04:36]}
5... gxh4 {[%clk 0:04:46.8]} 6. Nf3 {[%clk 0:04:34.5]} 6... Bg7 {[%clk
0:04:41.9]} 7. e3 {[%clk 0:04:32.5]} 7... Nc6 {[%clk 0:04:37.3]} 8. d5 {[%clk
0:04:28.2]} 8... Bxb2 {[%clk 0:04:28.8]} 9. dxc6 {[%clk 0:04:23.7]} 9... Bxa1
{[%clk 0:04:27.1]} 10. Na3 {[%clk 0:04:11.2]} 10... Qa5+ {[%clk 0:04:22.2]} 11.
Kf2 {[%clk 0:04:04.4]} 11... Qxa3 {[%clk 0:04:10.5]} 12. Qxa1 {[%clk 0:04:02.1]}
12... f6 {[%clk 0:04:10.1]} 13. e5 {[%clk 0:03:50.9]} 13... Rf8 {[%clk
0:03:42.2]} 14. Bd3 {[%clk 0:03:29.1]} 14... bxc6 {[%clk 0:03:14]} 15. Bxh7
{[%clk 0:03:24.6]} 15... Ba6 {[%clk 0:03:09.8]} 16. Bg6+ {[%clk 0:03:21.8]}
16... Kd8 {[%clk 0:03:08.8]} 17. Rd1 {[%clk 0:03:11.7]} 17... Kc7 {[%clk
0:03:06.9]} 18. Rd3 {[%clk 0:02:47.3]} 18... Bxd3 {[%clk 0:03:04.6]} 19. Bxd3
{[%clk 0:02:45.2]} 19... Rab8 {[%clk 0:03:03.8]} 20. Nd2 {[%clk 0:02:35.8]}
20... fxe5+ {[%clk 0:02:58.1]} 21. Ke2 {[%clk 0:02:29.8]} 21... Qb2 {[%clk
0:02:56.5]} 22. Qd1 {[%clk 0:02:26.1]} 22... d6 {[%clk 0:02:49.3]} 23. Nc4
{[%clk 0:02:24]} 23... Qxa2 {[%clk 0:02:47.5]} 24. e4 {[%clk 0:02:16.2]} 24...
Qb1 {[%clk 0:02:45.6]} 25. Qd2 {[%clk 0:02:11.6]} 25... Qf1+ {[%clk 0:02:37.5]}
26. Ke3 {[%clk 0:02:06.2]} 26... Qg1+ {[%clk 0:02:30.7]} 27. Ke2 {[%clk
0:01:55.9]} 27... Rf2+ {[%clk 0:02:30.2]} 0-1

[Event "Live Chess"]
[Site "Chess.com"]
[Date "2023.05.20"]
[Round "-"]
[White "Ed_Knox"]
[Black "Doctor_XTO"]
[Result "1-0"]
[WhiteElo "1441"]
[BlackElo "130"]
[TimeControl "300"]
[EndTime "15:56:18 PDT"]
[Termination "Ed_Knox won by checkmate"]

1. d4 {[%clk 0:04:56.6]} 1... d5 {[%clk 0:04:58.4]} 2. Bf4 {[%clk 0:04:55.9]}
2... e6 {[%clk 0:04:50.5]} 3. e3 {[%clk 0:04:55.4]} 3... f5 {[%clk 0:04:45.2]}
4. Nf3 {[%clk 0:04:54]} 4... g6 {[%clk 0:04:42.8]} 5. Be5 {[%clk 0:04:49.2]}
5... Nf6 {[%clk 0:04:38.4]} 6. Nbd2 {[%clk 0:04:35.7]} 6... Nc6 {[%clk
0:04:35.4]} 7. Nb3 {[%clk 0:04:27.1]} 7... Nxe5 {[%clk 0:04:34.2]} 8. Nxe5
{[%clk 0:04:25.9]} 8... Ne4 {[%clk 0:04:28.8]} 9. f3 {[%clk 0:04:21.4]} 9... Ng5
{[%clk 0:04:20]} 10. h4 {[%clk 0:04:17.8]} 10... Nf7 {[%clk 0:04:15.5]} 11. Nxf7
{[%clk 0:04:14.1]} 11... Kxf7 {[%clk 0:04:13.2]} 12. Qe2 {[%clk 0:03:59.4]}
12... b6 {[%clk 0:04:10.2]} 13. O-O-O {[%clk 0:03:57]} 13... c5 {[%clk
0:04:07.1]} 14. dxc5 {[%clk 0:03:51.3]} 14... bxc5 {[%clk 0:04:04.5]} 15. e4
{[%clk 0:03:49.9]} 15... fxe4 {[%clk 0:03:57.1]} 16. fxe4 {[%clk 0:03:48.7]}
16... dxe4 {[%clk 0:03:56.1]} 17. Rxd8 {[%clk 0:03:47]} 17... Bg7 {[%clk
0:03:44.2]} 18. Qf2+ {[%clk 0:03:43.4]} 18... Ke7 {[%clk 0:03:40.5]} 19. Rxh8
{[%clk 0:03:32.2]} 19... Bxh8 {[%clk 0:03:39]} 20. Qxc5+ {[%clk 0:03:31.6]}
20... Kd8 {[%clk 0:03:30.7]} 21. Qd6+ {[%clk 0:03:28.7]} 21... Bd7 {[%clk
0:03:28.1]} 22. Bb5 {[%clk 0:03:25.6]} 22... Rb8 {[%clk 0:03:12.7]} 23. Qxd7#
{[%clk 0:03:23.3]} 1-0

[Event "Live Chess"]
[Site "Chess.com"]
[Date "2023.05.20"]
[Round "-"]
[White "nigelst"]
[Black "WilliamofOrange16th"]
[Result "1/2-1/2"]
[WhiteElo "1804"]
[BlackElo "1845"]
[TimeControl "300"]
[EndTime "15:56:22 PDT"]
[Termination "Game drawn by stalemate"]

1. e4 {[%clk 0:04:59.1]} 1... d6 {[%clk 0:04:56.1]} 2. d4 {[%clk 0:04:57]} 2...
Nf6 {[%clk 0:04:52.2]} 3. Nc3 {[%clk 0:04:47.2]} 3... Nbd7 {[%clk 0:04:48.5]} 4.
f4 {[%clk 0:04:45.6]} 4... e5 {[%clk 0:04:44.8]} 5. dxe5 {[%clk 0:04:43.9]} 5...
dxe5 {[%clk 0:04:42.3]} 6. Nf3 {[%clk 0:04:42.3]} 6... Bd6 {[%clk 0:04:22.8]} 7.
Bc4 {[%clk 0:04:40.4]} 7... O-O {[%clk 0:04:20.6]} 8. f5 {[%clk 0:04:38.6]} 8...
c6 {[%clk 0:04:19.5]} 9. O-O {[%clk 0:04:35]} 9... Bc5+ {[%clk 0:04:16.8]} 10.
Kh1 {[%clk 0:04:33.9]} 10... b5 {[%clk 0:04:12.9]} 11. Bb3 {[%clk 0:04:30]}
11... Qc7 {[%clk 0:04:05.3]} 12. Qe2 {[%clk 0:04:23.5]} 12... a5 {[%clk
0:04:03.8]} 13. a4 {[%clk 0:04:19.8]} 13... b4 {[%clk 0:04:01]} 14. Nd1 {[%clk
0:04:18.3]} 14... Be7 {[%clk 0:03:57.1]} 15. Nf2 {[%clk 0:04:08.2]} 15... Nc5
{[%clk 0:03:55.9]} 16. Bc4 {[%clk 0:03:57]} 16... Ba6 {[%clk 0:03:52.5]} 17. b3
{[%clk 0:03:52.3]} 17... Bxc4 {[%clk 0:03:50.3]} 18. Qxc4 {[%clk 0:03:48.9]}
18... Rad8 {[%clk 0:03:46.7]} 19. Be3 {[%clk 0:03:43.8]} 19... Nb7 {[%clk
0:03:42.6]} 20. Rad1 {[%clk 0:03:41.4]} 20... Nd6 {[%clk 0:03:40.9]} 21. Qe2
{[%clk 0:03:39.1]} 21... Ndxe4 {[%clk 0:03:37.6]} 22. Nxe4 {[%clk 0:03:35.2]}
22... Nxe4 {[%clk 0:03:36.2]} 23. Bg1 {[%clk 0:03:24.3]} 23... Nc3 {[%clk
0:03:20.6]} 24. Qxe5 {[%clk 0:03:05.8]} 24... Qxe5 {[%clk 0:03:17.8]} 25. Nxe5
{[%clk 0:03:04.8]} 25... Nxd1 {[%clk 0:03:16.8]} 26. Nxc6 {[%clk 0:03:03.7]}
26... Rd7 {[%clk 0:02:43.8]} 27. Nxe7+ {[%clk 0:03:02.1]} 27... Rxe7 {[%clk
0:02:43.7]} 28. Rxd1 {[%clk 0:03:00.5]} 28... Rfe8 {[%clk 0:02:39.5]} 29. h3
{[%clk 0:02:55.4]} 29... Re2 {[%clk 0:02:33.7]} 30. Bb6 {[%clk 0:02:50.9]} 30...
R2e5 {[%clk 0:02:22.4]} 31. g4 {[%clk 0:02:36]} 31... Re1+ {[%clk 0:02:18.4]}
32. Rxe1 {[%clk 0:02:33.1]} 32... Rxe1+ {[%clk 0:02:18.3]} 33. Kg2 {[%clk
0:02:32.1]} 33... Re5 {[%clk 0:02:13.3]} 34. Kf3 {[%clk 0:02:28.6]} 34... Kf8
{[%clk 0:02:08.8]} 35. Kf4 {[%clk 0:02:27.6]} 35... f6 {[%clk 0:02:07.6]} 36.
Bd4 {[%clk 0:02:17.9]} 36... Rd5 {[%clk 0:01:58.3]} 37. Ke4 {[%clk 0:02:13.8]}
37... Rd8 {[%clk 0:01:51.9]} 38. c3 {[%clk 0:02:12]} 38... bxc3 {[%clk
0:01:43.1]} 39. Bxc3 {[%clk 0:02:09.2]} 39... Ra8 {[%clk 0:01:40.9]} 40. Kd5
{[%clk 0:02:05.9]} 40... Ke7 {[%clk 0:01:40.3]} 41. Kc5 {[%clk 0:02:02.1]} 41...
g6 {[%clk 0:01:36]} 42. Kb5 {[%clk 0:01:57.9]} 42... Rb8+ {[%clk 0:01:35.2]} 43.
Kxa5 {[%clk 0:01:56.1]} 43... Rxb3 {[%clk 0:01:34.3]} 44. Bb4+ {[%clk
0:01:53.1]} 44... Kd7 {[%clk 0:01:33.5]} 45. Kb5 {[%clk 0:01:50.7]} 45... gxf5
{[%clk 0:01:29.9]} 46. gxf5 {[%clk 0:01:49]} 46... Rxh3 {[%clk 0:01:28.9]} 47.
a5 {[%clk 0:01:47]} 47... Kc7 {[%clk 0:01:21.4]} 48. a6 {[%clk 0:01:44.4]} 48...
Rb3 {[%clk 0:01:15.2]} 49. Kc5 {[%clk 0:01:20.5]} 49... Rxb4 {[%clk 0:01:12.5]}
50. Kxb4 {[%clk 0:01:19.5]} 50... Kb6 {[%clk 0:01:12.1]} 51. Kc4 {[%clk
0:01:18.5]} 51... Kxa6 {[%clk 0:00:56.1]} 52. Kd5 {[%clk 0:01:17.5]} 52... h5
{[%clk 0:00:46.3]} 53. Ke6 {[%clk 0:01:04.7]} 53... h4 {[%clk 0:00:44.4]} 54.
Kxf6 {[%clk 0:01:03.7]} 54... h3 {[%clk 0:00:43.7]} 55. Kg7 {[%clk 0:01:02.9]}
55... h2 {[%clk 0:00:43.2]} 56. f6 {[%clk 0:01:02.2]} 56... h1=Q {[%clk
0:00:42]} 57. f7 {[%clk 0:01:01.2]} 57... Qg2+ {[%clk 0:00:37]} 58. Kh8 {[%clk
0:00:57.9]} 58... Qf3 {[%clk 0:00:33.1]} 59. Kg8 {[%clk 0:00:56.6]} 59... Qg4+
{[%clk 0:00:32.3]} 60. Kh8 {[%clk 0:00:55.7]} 60... Qf5 {[%clk 0:00:30.4]} 61.
Kg8 {[%clk 0:00:53.4]} 61... Qg6+ {[%clk 0:00:28.2]} 62. Kh8 {[%clk 0:00:50.2]}
62... Qf6+ {[%clk 0:00:23.7]} 63. Kg8 {[%clk 0:00:48.6]} 63... Qe6 {[%clk
0:00:22.9]} 64. Kg7 {[%clk 0:00:45.3]} 64... Qe7 {[%clk 0:00:21.7]} 65. Kg8
{[%clk 0:00:43.8]} 65... Qg5+ {[%clk 0:00:20.7]} 66. Kh8 {[%clk 0:00:42]} 66...
Qh6+ {[%clk 0:00:17.4]} 67. Kg8 {[%clk 0:00:40.8]} 67... Qg6+ {[%clk 0:00:14.6]}
68. Kh8 {[%clk 0:00:40]} 68... Qxf7 {[%clk 0:00:13.3]} 1/2-1/2

[Event "Live Chess"]
[Site "Chess.com"]
[Date "2023.05.20"]
[Round "-"]
[White "smoggyrabbit"]
[Black "SupremeTactician"]
[Result "0-1"]
[WhiteElo "1697"]
[BlackElo "2334"]
[TimeControl "300"]
[EndTime "15:56:26 PDT"]
[Termination "SupremeTactician won by resignation"]

1. d4 {[%clk 0:04:59.1]} 1... Nf6 {[%clk 0:04:58.5]} 2. Nf3 {[%clk 0:04:58.4]}
2... e6 {[%clk 0:04:57.9]} 3. e3 {[%clk 0:04:57.7]} 3... b6 {[%clk 0:04:57.1]}
4. Bd3 {[%clk 0:04:56.4]} 4... Bb7 {[%clk 0:04:56.5]} 5. O-O {[%clk 0:04:55.4]}
5... Be7 {[%clk 0:04:55.4]} 6. b3 {[%clk 0:04:54.6]} 6... O-O {[%clk 0:04:54.4]}
7. Bb2 {[%clk 0:04:53.7]} 7... d6 {[%clk 0:04:54.2]} 8. c4 {[%clk 0:04:51.5]}
8... Nbd7 {[%clk 0:04:53.9]} 9. Nc3 {[%clk 0:04:49.8]} 9... Re8 {[%clk
0:04:52.4]} 10. Qc2 {[%clk 0:04:44.9]} 10... Nf8 {[%clk 0:04:51.3]} 11. Ne4
{[%clk 0:04:39.7]} 11... Nxe4 {[%clk 0:04:48.7]} 12. Bxe4 {[%clk 0:04:39.1]}
12... Bxe4 {[%clk 0:04:48.4]} 13. Qxe4 {[%clk 0:04:37.6]} 13... Qd7 {[%clk
0:04:48.1]} 14. d5 {[%clk 0:04:33.2]} 14... e5 {[%clk 0:04:46.2]} 15. Nd2 {[%clk
0:04:24.4]} 15... f5 {[%clk 0:04:44.7]} 16. Qc2 {[%clk 0:04:21.8]} 16... g6
{[%clk 0:04:38.8]} 17. f4 {[%clk 0:04:20.5]} 17... Bf6 {[%clk 0:04:36.2]} 18.
Rae1 {[%clk 0:04:08.2]} 18... Qf7 {[%clk 0:04:28.9]} 19. Qc3 {[%clk 0:04:06.4]}
19... Nd7 {[%clk 0:04:26]} 20. Qc2 {[%clk 0:04:00.2]} 20... exf4 {[%clk
0:04:21.3]} 21. exf4 {[%clk 0:03:58.9]} 21... Rxe1 {[%clk 0:04:17.1]} 22. Rxe1
{[%clk 0:03:58.1]} 22... Re8 {[%clk 0:04:15.4]} 23. Rxe8+ {[%clk 0:03:48.6]}
23... Qxe8 {[%clk 0:04:15.3]} 24. Nf3 {[%clk 0:03:42.5]} 24... Qe3+ {[%clk
0:04:11]} 25. Qf2 {[%clk 0:03:37.5]} 25... Qxf2+ {[%clk 0:04:07.9]} 26. Kxf2
{[%clk 0:03:35.9]} 26... Bxb2 {[%clk 0:04:07.8]} 27. Ng5 {[%clk 0:03:34.8]}
27... Nc5 {[%clk 0:04:05.7]} 28. Ke3 {[%clk 0:03:30.8]} 28... Bc1+ {[%clk
0:04:03.6]} 29. Kf3 {[%clk 0:03:28.8]} 29... h6 {[%clk 0:04:01.7]} 30. Ne6
{[%clk 0:03:16.6]} 30... Nxe6 {[%clk 0:04:00.2]} 31. dxe6 {[%clk 0:03:16.5]}
31... Kf8 {[%clk 0:03:59.2]} 32. g4 {[%clk 0:03:15.8]} 32... Ke7 {[%clk
0:03:58.5]} 33. gxf5 {[%clk 0:03:13.5]} 33... gxf5 {[%clk 0:03:57.7]} 34. Kg3
{[%clk 0:03:09.1]} 34... Kxe6 {[%clk 0:03:56.2]} 35. Kf3 {[%clk 0:03:07.4]}
35... c6 {[%clk 0:03:55.3]} 36. h3 {[%clk 0:03:05.5]} 36... d5 {[%clk
0:03:55.2]} 37. cxd5+ {[%clk 0:03:03.8]} 37... Kxd5 {[%clk 0:03:54.1]} 38. h4
{[%clk 0:03:01.7]} 38... Kd4 {[%clk 0:03:53.4]} 39. h5 {[%clk 0:03:01]} 39...
Kc3 {[%clk 0:03:52.6]} 40. Ke2 {[%clk 0:02:56.7]} 40... Kb2 {[%clk 0:03:51.4]}
41. Kd3 {[%clk 0:02:55.2]} 41... Bxf4 {[%clk 0:03:50.5]} 0-1

[Event "Live Chess"]
[Site "Chess.com"]
[Date "2023.05.20"]
[Round "-"]
[White "elvenstar"]
[Black "jennybobby44"]
[Result "0-1"]
[WhiteElo "1574"]
[BlackElo "1850"]
[TimeControl "300"]
[EndTime "15:56:43 PDT"]
[Termination "jennybobby44 won by resignation"]

1. e4 {[%clk 0:04:58]} 1... c5 {[%clk 0:04:58.7]} 2. Nf3 {[%clk 0:04:55.5]} 2...
Nc6 {[%clk 0:04:57.9]} 3. Bc4 {[%clk 0:04:54.3]} 3... e6 {[%clk 0:04:57.1]} 4.
O-O {[%clk 0:04:53.1]} 4... a6 {[%clk 0:04:56.1]} 5. d3 {[%clk 0:04:48.4]} 5...
d6 {[%clk 0:04:49.7]} 6. a4 {[%clk 0:04:45.8]} 6... Nf6 {[%clk 0:04:48.6]} 7.
Bg5 {[%clk 0:04:42.4]} 7... Be7 {[%clk 0:04:47.9]} 8. Nbd2 {[%clk 0:04:40.6]}
8... h6 {[%clk 0:04:47]} 9. Bh4 {[%clk 0:04:38]} 9... O-O {[%clk 0:04:46.1]} 10.
c3 {[%clk 0:04:36.2]} 10... d5 {[%clk 0:04:38.9]} 11. exd5 {[%clk 0:04:31.5]}
11... exd5 {[%clk 0:04:38]} 12. Bb3 {[%clk 0:04:30.6]} 12... Be6 {[%clk
0:04:36.9]} 13. Re1 {[%clk 0:04:26]} 13... Na5 {[%clk 0:04:19.1]} 14. Bc2 {[%clk
0:04:22.9]} 14... d4 {[%clk 0:04:05.5]} 15. Ne4 {[%clk 0:03:54.7]} 15... Nxe4
{[%clk 0:03:34.5]} 16. Bxe7 {[%clk 0:03:51.7]} 16... Qxe7 {[%clk 0:03:33.7]} 17.
Rxe4 {[%clk 0:03:49.4]} 17... dxc3 {[%clk 0:03:28.1]} 18. bxc3 {[%clk
0:03:46.2]} 18... Qf6 {[%clk 0:03:20.5]} 19. Qd2 {[%clk 0:03:36.1]} 19... Nc6
{[%clk 0:03:05.9]} 20. Rae1 {[%clk 0:03:29.9]} 20... Rad8 {[%clk 0:02:42.7]} 21.
Rf4 {[%clk 0:03:23.1]} 21... Qe7 {[%clk 0:02:36.8]} 22. Qe3 {[%clk 0:03:12.8]}
22... b6 {[%clk 0:02:23.7]} 23. d4 {[%clk 0:02:59.3]} 23... cxd4 {[%clk
0:02:22.4]} 24. Nxd4 {[%clk 0:02:55]} 24... Nxd4 {[%clk 0:02:19.5]} 25. Rxd4
{[%clk 0:02:46.3]} 25... Rxd4 {[%clk 0:02:16.2]} 26. cxd4 {[%clk 0:02:44.4]}
26... Qb4 {[%clk 0:02:12.3]} 27. Qe4 {[%clk 0:02:33.2]} 27... Bf5 {[%clk
0:02:01.9]} 0-1

[Event "Live Chess"]
[Site "Chess.com"]
[Date "2023.05.20"]
[Round "-"]
[White "xx_blindpuffin_xx"]
[Black "HD_IN4k"]
[Result "1-0"]
[WhiteElo "2208"]
[BlackElo "391"]
[TimeControl "300"]
[EndTime "15:56:44 PDT"]
[Termination "xx_blindpuffin_xx won by checkmate"]

1. d4 {[%clk 0:04:58.8]} 1... g6 {[%clk 0:04:56.9]} 2. Bf4 {[%clk 0:04:56.9]}
2... Bg7 {[%clk 0:04:54.8]} 3. e3 {[%clk 0:04:56]} 3... Nf6 {[%clk 0:04:50.5]}
4. Nf3 {[%clk 0:04:55.1]} 4... Nh5 {[%clk 0:04:49]} 5. Bg3 {[%clk 0:04:53.2]}
5... Nxg3 {[%clk 0:04:47.6]} 6. hxg3 {[%clk 0:04:53.1]} 6... h5 {[%clk
0:04:41.9]} 7. Be2 {[%clk 0:04:51.5]} 7... d5 {[%clk 0:04:33]} 8. c4 {[%clk
0:04:50.5]} 8... Bg4 {[%clk 0:04:31]} 9. Qb3 {[%clk 0:04:46.3]} 9... Bxf3 {[%clk
0:04:29.7]} 10. Bxf3 {[%clk 0:04:37.7]} 10... c6 {[%clk 0:04:06.2]} 11. Qxb7
{[%clk 0:04:35.3]} 11... Nd7 {[%clk 0:03:57.6]} 12. Qxc6 {[%clk 0:04:33.9]}
12... Rc8 {[%clk 0:03:54.3]} 13. Qxd5 {[%clk 0:04:32.6]} 13... Nf6 {[%clk
0:03:51.3]} 14. Qb5+ {[%clk 0:04:21.6]} 14... Nd7 {[%clk 0:03:47.2]} 15. Qa4
{[%clk 0:04:15.9]} 15... O-O {[%clk 0:03:35.5]} 16. Nc3 {[%clk 0:04:04.2]} 16...
e5 {[%clk 0:03:29.8]} 17. O-O {[%clk 0:03:56.8]} 17... exd4 {[%clk 0:03:27.8]}
18. exd4 {[%clk 0:03:56.7]} 18... h4 {[%clk 0:03:11.2]} 19. gxh4 {[%clk
0:03:47.8]} 19... f5 {[%clk 0:02:56.3]} 20. Qa6 {[%clk 0:03:41.9]} 20... Nf6
{[%clk 0:02:51.9]} 21. Nd5 {[%clk 0:03:39.5]} 21... Nxd5 {[%clk 0:02:47.4]} 22.
Bxd5+ {[%clk 0:03:35.7]} 22... Kh8 {[%clk 0:02:38.8]} 23. Qxg6 {[%clk
0:03:34.1]} 23... Bxd4 {[%clk 0:02:26.8]} 24. Rae1 {[%clk 0:03:26.4]} 24... Re8
{[%clk 0:02:20.4]} 25. Bf7 {[%clk 0:03:20]} 25... Rxe1 {[%clk 0:02:16.6]} 26.
Qh6# {[%clk 0:03:18.9]} 1-0

[Event "Live Chess"]
[Site "Chess.com"]
[Date "2023.05.20"]
[Round "-"]
[White "Long1968"]
[Black "ZackirtyChess"]
[Result "0-1"]
[WhiteElo "1211"]
[BlackElo "1164"]
[TimeControl "300"]
[EndTime "15:57:10 PDT"]
[Termination "ZackirtyChess won on time"]

1. e4 {[%clk 0:04:54.8]} 1... e5 {[%clk 0:04:58.5]} 2. f4 {[%clk 0:04:52.7]}
2... exf4 {[%clk 0:04:57.1]} 3. Bc4 {[%clk 0:04:50.3]} 3... Qh4+ {[%clk
0:04:53.3]} 4. Kf1 {[%clk 0:04:47.3]} 4... Bc5 {[%clk 0:04:51.3]} 5. d4 {[%clk
0:04:43.1]} 5... Bb6 {[%clk 0:04:36.9]} 6. Nf3 {[%clk 0:04:39.6]} 6... Qf6
{[%clk 0:04:31]} 7. e5 {[%clk 0:04:32.6]} 7... Qf5 {[%clk 0:04:26.7]} 8. Bd3
{[%clk 0:04:21.2]} 8... Qe6 {[%clk 0:04:23.1]} 9. Bxf4 {[%clk 0:04:16.7]} 9...
f6 {[%clk 0:04:19.1]} 10. Nbd2 {[%clk 0:03:58]} 10... fxe5 {[%clk 0:04:16.1]}
11. dxe5 {[%clk 0:03:52.3]} 11... Nc6 {[%clk 0:04:15.1]} 12. Nc4 {[%clk
0:03:35.5]} 12... Nge7 {[%clk 0:04:08.3]} 13. Ng5 {[%clk 0:03:00.8]} 13... Qd5
{[%clk 0:03:54.5]} 14. Nxh7 {[%clk 0:02:37.3]} 14... Qd4 {[%clk 0:03:33.7]} 15.
Qe2 {[%clk 0:02:01.5]} 15... Qxb2 {[%clk 0:03:16.9]} 16. Re1 {[%clk 0:01:38.3]}
16... Qxa2 {[%clk 0:03:05.7]} 17. Nd6+ {[%clk 0:01:14.8]} 17... cxd6 {[%clk
0:02:58.7]} 18. exd6 {[%clk 0:01:11]} 18... Qe6 {[%clk 0:02:53.5]} 19. dxe7
{[%clk 0:00:53]} 19... Qxe2+ {[%clk 0:02:48]} 20. Rxe2 {[%clk 0:00:49]} 20...
Nxe7 {[%clk 0:02:45.3]} 21. Bg6+ {[%clk 0:00:30.1]} 21... Kd8 {[%clk 0:02:40.6]}
22. Bg5 {[%clk 0:00:25.5]} 22... Bc5 {[%clk 0:02:34.3]} 23. g3 {[%clk
0:00:11.6]} 23... d6 {[%clk 0:02:31]} 24. Kg2 {[%clk 0:00:07.8]} 24... Bg4
{[%clk 0:02:28.8]} 25. Rxe7 {[%clk 0:00:02.3]} 25... Kc8 {[%clk 0:02:26.6]} 0-1

[Event "Live Chess"]
[Site "Chess.com"]
[Date "2023.05.20"]
[Round "-"]
[White "LodeshChess"]
[Black "luckywookie"]
[Result "1-0"]
[WhiteElo "1130"]
[BlackElo "753"]
[TimeControl "300"]
[EndTime "15:57:12 PDT"]
[Termination "LodeshChess won by checkmate"]

1. e4 {[%clk 0:04:58]} 1... c6 {[%clk 0:04:56.6]} 2. Nf3 {[%clk 0:04:56]} 2...
d5 {[%clk 0:04:55.6]} 3. d3 {[%clk 0:04:55.7]} 3... Bg4 {[%clk 0:04:49.1]} 4.
Nc3 {[%clk 0:04:48.3]} 4... e5 {[%clk 0:04:43]} 5. Be2 {[%clk 0:04:46.2]} 5...
Bd6 {[%clk 0:04:41.4]} 6. O-O {[%clk 0:04:23.8]} 6... Nf6 {[%clk 0:04:37.7]} 7.
h3 {[%clk 0:04:22.2]} 7... Bxf3 {[%clk 0:04:36.4]} 8. Bxf3 {[%clk 0:04:21.3]}
8... d4 {[%clk 0:04:33]} 9. Ne2 {[%clk 0:04:17.1]} 9... O-O {[%clk 0:04:26.7]}
10. Ng3 {[%clk 0:04:16.5]} 10... g6 {[%clk 0:04:24.8]} 11. Bh6 {[%clk
0:04:09.9]} 11... Re8 {[%clk 0:04:22.2]} 12. Bg4 {[%clk 0:03:54.5]} 12... Nbd7
{[%clk 0:03:48.4]} 13. a4 {[%clk 0:03:44.9]} 13... Nxg4 {[%clk 0:03:46.5]} 14.
Qxg4 {[%clk 0:03:43.1]} 14... Nf6 {[%clk 0:03:45.4]} 15. Qg5 {[%clk 0:03:39.4]}
15... Be7 {[%clk 0:03:40.2]} 16. Nf5 {[%clk 0:03:24.8]} 16... Nh5 {[%clk
0:03:30.1]} 17. Nxe7+ {[%clk 0:03:23.5]} 17... Rxe7 {[%clk 0:03:22.6]} 18. g4
{[%clk 0:03:06.3]} 18... Nf4 {[%clk 0:02:56.9]} 19. Qf6 {[%clk 0:02:56.5]} 19...
Nxh3+ {[%clk 0:02:48.2]} 20. Kh2 {[%clk 0:02:55.1]} 20... Qf8 {[%clk 0:02:25.4]}
21. Bxf8 {[%clk 0:02:52.9]} 21... Kxf8 {[%clk 0:02:24.8]} 22. Kxh3 {[%clk
0:02:48]} 22... Re6 {[%clk 0:02:21.2]} 23. Qh8+ {[%clk 0:02:44]} 23... Ke7
{[%clk 0:02:18.7]} 24. Qxa8 {[%clk 0:02:43.4]} 24... Rf6 {[%clk 0:02:18.2]} 25.
Qxb7+ {[%clk 0:02:37.8]} 25... Ke6 {[%clk 0:02:16.7]} 26. Qxc6+ {[%clk
0:02:35.6]} 26... Ke7 {[%clk 0:02:15.1]} 27. Qc7+ {[%clk 0:02:30.9]} 27... Ke6
{[%clk 0:02:14.2]} 28. Kg3 {[%clk 0:02:29.4]} 28... h6 {[%clk 0:02:05.9]} 29.
Ra3 {[%clk 0:02:17.6]} 29... h5 {[%clk 0:01:58.7]} 30. gxh5 {[%clk 0:02:01.6]}
30... gxh5 {[%clk 0:01:45.4]} 31. Qxa7 {[%clk 0:01:48.1]} 31... Rg6+ {[%clk
0:01:43.4]} 32. Kh4 {[%clk 0:01:47.7]} 32... Rg4+ {[%clk 0:01:32.7]} 33. Kxh5
{[%clk 0:01:46.3]} 33... Rg2 {[%clk 0:01:21.1]} 34. Rb3 {[%clk 0:01:34.7]} 34...
Kf6 {[%clk 0:01:19.9]} 35. Rb6+ {[%clk 0:01:32]} 35... Kg7 {[%clk 0:01:18.7]}
36. Qb7 {[%clk 0:01:19.7]} 36... Rh2+ {[%clk 0:01:09.8]} 37. Kg4 {[%clk
0:01:18.9]} 37... Rg2+ {[%clk 0:01:06.9]} 38. Kh3 {[%clk 0:01:18.5]} 38... Rg5
{[%clk 0:01:01.4]} 39. Qe7 {[%clk 0:01:10.1]} 39... Rh5+ {[%clk 0:00:58.6]} 40.
Kg4 {[%clk 0:01:07.8]} 40... Rh6 {[%clk 0:00:50.3]} 41. Rxh6 {[%clk 0:01:03.8]}
41... Kxh6 {[%clk 0:00:49.4]} 42. Rh1+ {[%clk 0:01:03.3]} 42... Kg7 {[%clk
0:00:48.1]} 43. Qg5+ {[%clk 0:01:01.9]} 43... Kf8 {[%clk 0:00:46.4]} 44. Rh8#
{[%clk 0:00:56.1]} 1-0